[Event "7th Ali Ipek Memorial 2019"]
[Site "Ankara"]
[Date "2019.03.07"]
[Round "2.1"]
[White "Guven, Oguz Kagan"]
[Black "Kaynak, Deniz Can"]
[Result "1-0"]
[ECO "A30"]
[WhiteElo "2096"]
[BlackElo "1467"]
[Annotator "NA RC"]
[PlyCount "49"]
[EventDate "2019.03.06"]
[EventType "swiss"]
[EventCountry "TUR"]
[SourceTitle "playchess.com"]
[Source "ChessBase"]
[SourceQuality "1"]
[TimeControl "5400+30"]

1. Nf3 {[%emt 0:00:30]} Nf6 {[%emt 0:00:30]} 2. c4 {[%emt 0:00:30]} e6 {[%emt 0:00:30]} 3. d4 {[%emt 0:00:30]} b6 {[%emt 0:00:30]} 4. g3 {[%emt 0:00:30]} Bb7 {[%emt 0:00:30]} 5. Bg2 {[%emt 0:00:30]} c5 {[%emt 0:00:30]} 6. O-O {[%emt 0:01:30]} Be7 {[%emt 0:01:30]} 7. d5 {[%emt 0:02:30] A30: Symmetrical English: Double Fianchetto and Hedgehog} (7. Nc3 cxd4 8. Qxd4 d6 9. Bg5 a6 10. Bxf6 Bxf6 11. Qf4 Bxf3 12. exf3 Ra7 13. Rfd1 Rd7 14. Qd2 O-O 15. f4 g6 16. Rac1 Qc7 17. Ne4 {½-½ (17) Alonso Rosell,A (2547)-Lopez Martinez,J (2535) Barcelona 2013}) 7... d6 {[%emt 0:04:30]} 8. Nc3 {[%emt 0:02:30]} O-O {[%emt 0:00:30]} 9. e4 {[%emt 0:01:30]} e5 {[%emt 0:06:30]} 10. Nh4 {[%emt 0:01:30]} Nbd7 {[%emt 0:02:30]} 11. Nf5 {[%emt 0:15:30]} a6 $146 {[%emt 0:02:30]} ({Predecessor:} 11... g6 12. Nxe7+ Qxe7 13. Bh6 Rfe8 14. f4 exf4 15. gxf4 Nh5 16. e5 {½-½ (36) Beckman,T (1946)-Slack,D (1891) Bethesda 2014}) 12. a4 {[%emt 0:07:30]} Re8 {[%emt 0:03:30]} 13. f4 {[%emt 0:05:30]} Bf8 {[%emt 0:02:30]} 14. fxe5 {[%emt 0:04:30]} Nxe5 {[%emt 0:00:30]} 15. Bg5 {[%emt 0:01:30]} Neg4 {[%emt 0:13:30]} 16. Rf4 {[%emt 0:05:30]} h6 {[%emt 0:10:30] [#]} (16... Ne5 $16 {was necessary.} 17. Nh6+ Kh8) 17. Qxg4 $1 {[%emt 0:03:30]} hxg5 {[%emt 0:02:30]} 18. Qxg5 {[%emt 0:00:00]} Re5 {[%emt 0:01:30]} 19. Rh4 {[%emt 0:05:00]} g6 {[%emt 0:01:30] [#]} 20. Rf1 $2 {[%emt 0:03:30]} (20. Nh6+ $1 $18 Bxh6 21. Qxh6) 20... Bg7 $1 {[%emt 0:03:30]} 21. Nh6+ {[%emt 0:03:30]} Kf8 {[%emt 0:02:30]} 22. Qd2 {[%emt 0:00:30]} Bc8 {[%emt 0:02:30]} 23. g4 {[%emt 0:05:30]} g5 {[%emt 0:01:30]} (23... Ra7 $1 $15 {stays ahead.} 24. Qf2 Bxh6 25. Rxh6 Kg7) 24. Rh3 {[%emt 0:00:30]} Nxg4 $2 {[%emt 0:02:30]} (24... Ra7 $16) 25. Nxf7 $18 {[%emt 0:01:30]} 1-0

[Event "7th Ali Ipek Memorial 2019"]
[Site "Ankara"]
[Date "2019.03.07"]
[Round "2.2"]
[White "Sozen, Abdullah"]
[Black "Kizilkus, Akin"]
[Result "1/2-1/2"]
[ECO "A48"]
[WhiteElo "1466"]
[BlackElo "2004"]
[Annotator "NA RC"]
[PlyCount "141"]
[EventDate "2019.03.06"]
[EventType "swiss"]
[EventCountry "TUR"]
[SourceTitle "playchess.com"]
[Source "ChessBase"]
[SourceQuality "1"]
[TimeControl "5400+30"]

1. d4 {[%emt 0:07:30]} Nf6 {[%emt 0:00:30]} 2. Nf3 {[%emt 0:00:30]} g6 {[%emt 0:00:30]} 3. Bg5 {[%emt 0:00:30]} Bg7 {[%emt 0:00:30]} 4. Nbd2 {[%emt 0:00:30]} d6 {[%emt 0:00:00]} 5. e4 {[%emt 0:00:00]} O-O {[%emt 0:01:00]} 6. c3 {[%emt 0:00:00]} c5 {[%emt 0:00:30]} 7. dxc5 {[%emt 0:00:30]} dxc5 {[%emt 0:00:30]} 8. Bc4 {[%emt 0:00:30]} Nc6 {[%emt 0:00:30]} 9. O-O {[%emt 0:00:30]} Qc7 {[%emt 0:00:00]} 10. Qe2 {[%emt 0:01:30]} h6 {[%emt 0:00:00] A48: 1 d4 Nf6 2 Nf3 g6: Torre, London and Colle Systems} 11. Bxf6 {[%emt 0:00:30]} exf6 {[%emt 0:01:30]} (11... Bxf6 12. Qe3 Bg7 13. Qxc5 b6 14. Qe3 Bb7 15. Rfd1 e6 16. Be2 Rfd8 17. Nf1 a6 18. h4 b5 19. N1h2 Rxd1+ 20. Rxd1 {1-0 (35) Harikrishna,P (2744)-Duda,J (2717) Riadh 2017}) 12. h3 {[%emt 0:01:30]} f5 {[%emt 0:17:30]} 13. Nh4 {[%emt 0:05:30]} Kh8 $146 {[%emt 0:10:30]} ({Predecessor:} 13... Re8 14. Nxg6 fxe4 15. Nh4 Qf4 16. g3 Qe5 {0-1 (49) Petrusic,V (2176)-Cabarkapa,N (2413) Kac 2016}) 14. exf5 {[%emt 0:04:30]} g5 {[%emt 0:05:30]} 15. Qh5 {[%emt 0:04:30]} Qf4 {[%emt 0:08:30]} 16. f6 {[%emt 0:09:30]} Qxf6 {[%emt 0:01:30]} 17. Nhf3 {[%emt 0:01:30]} Bf5 {[%emt 0:00:30]} 18. Rfe1 {[%emt 0:00:30]} Bg6 {[%emt 0:02:30]} 19. Qg4 {[%emt 0:00:30]} Rae8 {[%emt 0:05:30]} 20. Qd7 {[%emt 0:04:30]} Re7 {[%emt 0:04:30]} 21. Rxe7 {[%emt 0:00:30]} Qxe7 {[%emt 0:00:00]} 22. Qxe7 {[%emt 0:00:30]} Nxe7 {[%emt 0:00:00]} 23. Re1 {[%emt 0:00:30]} Nc6 {[%emt 0:00:30]} 24. Ne4 {[%emt 0:02:30]} b6 {[%emt 0:01:30]} 25. Nd6 {[%emt 0:02:30]} Kg8 {[%emt 0:04:30]} 26. Ne8 {[%emt 0:02:30]} Ne5 {[%emt 0:01:30]} 27. Bb5 {[%emt 0:09:30]} Bd3 {[%emt 0:07:30]} 28. Nxe5 {[%emt 0:03:30]} Bxb5 {[%emt 0:02:30]} 29. Nxg7 {[%emt 0:00:30]} Kxg7 {[%emt 0:00:00]} 30. Ng4 {[%emt 0:00:30]} Re8 {[%emt 0:00:00]} 31. Rxe8 {[%emt 0:00:30]} Bxe8 {[%emt 0:00:30]} 32. Kf1 {[%emt 0:00:30]} f5 {[%emt 0:00:00]} 33. Ne3 {[%emt 0:00:30]} Kf6 {[%emt 0:00:00]} 34. g3 {[%emt 0:00:30]} Bf7 {[%emt 0:01:30]} 35. a3 {[%emt 0:00:30]} Ke5 {[%emt 0:00:00]} 36. Ke2 {[%emt 0:00:30]} Be6 {[%emt 0:01:00]} 37. Kf3 {[%emt 0:06:30]} h5 {[%emt 0:00:30]} 38. h4 {[%emt 0:06:30]} gxh4 {[%emt 0:03:30]} 39. gxh4 {[%emt 0:00:30]} f4 {[%emt 0:00:30]} 40. Nc2 {[%emt 0:01:30]} Bb3 {[%emt 0:01:30]} 41. Ne1 {[%emt 0:00:30]} Bd1+ {[%emt 0:00:00]} 42. Kg2 {[%emt 0:00:30]} Ke4 {[%emt 0:00:00]} 43. Kf1 {[%emt 0:00:30]} f3 {[%emt 0:00:30]} 44. Kg1 {[%emt 0:00:30]} c4 {[%emt 0:00:00]} 45. Kh2 {[%emt 0:02:30]} Kf4 {[%emt 0:00:00]} 46. Kh3 {[%emt 0:00:30]} a5 {[%emt 0:02:30]} 47. Kh2 {[%emt 0:00:30]} Kg4 {[%emt 0:00:30]} 48. Kg1 {[%emt 0:00:00]} Kxh4 {[%emt 0:00:30]} 49. Kh2 {[%emt 0:00:00]} Kg4 {[%emt 0:01:53]} 50. Kg1 {[%emt 0:00:30]} Ba4 {[%emt 0:04:10]} 51. Kh2 {[%emt 0:00:00]} h4 {[%emt 0:00:28]} 52. Kg1 {[%emt 0:00:00]} Kf4 {[%emt 0:00:00]} 53. Kh2 {[%emt 0:00:30]} Bd7 {[%emt 0:00:46]} 54. Kg1 {[%emt 0:00:00]} Bf5 {[%emt 0:00:18]} 55. Kh2 {[%emt 0:01:00]} Ke4 {[%emt 0:00:30]} 56. Kg1 {[%emt 0:00:00]} Bg4 {[%emt 0:02:16]} 57. Kh2 {[%emt 0:00:00]} Kd5 {[%emt 0:00:30]} 58. Kg1 {[%emt 0:00:30]} Kc5 {[%emt 0:00:30]} 59. Nc2 {[%emt 0:00:30]} Kb5 {[%emt 0:00:30]} 60. Ne3 {[%emt 0:00:30]} Be6 {[%emt 0:00:30]} 61. Nf1 {[%emt 0:00:30]} Kc5 {[%emt 0:00:30]} 62. Nd2 {[%emt 0:00:30]} Bg4 {[%emt 0:00:30]} 63. Kh2 {[%emt 0:00:30]} Kd5 {[%emt 0:00:30]} 64. Kg1 {[%emt 0:00:30]} b5 {[%emt 0:00:30]} 65. Kh2 {[%emt 0:00:30]} Kc5 {[%emt 0:00:30]} 66. Ne4+ {[%emt 0:00:30]} Kc6 {[%emt 0:00:30]} 67. Nd2 {[%emt 0:02:30]} Kd5 $19 {[%emt 0:08:14]} 68. Kg1 {[%emt 0:00:30]} Kc6 {[%emt 0:02:09]} 69. Kh2 {[%emt 0:00:00]} Kd5 {[%emt 0:00:55]} 70. Kg1 {[%emt 0:00:00]} Kc6 {[%emt 0:00:29]} 71. Kh2 {[%emt 0:00:30]} 1/2-1/2

[Event "7th Ali Ipek Memorial 2019"]
[Site "Ankara"]
[Date "2019.03.07"]
[Round "2.3"]
[White "Buker, Muhittin"]
[Black "Elveren, Cinar"]
[Result "1-0"]
[ECO "D11"]
[WhiteElo "2009"]
[BlackElo "1391"]
[Annotator "NA RC"]
[PlyCount "67"]
[EventDate "2019.03.06"]
[EventType "swiss"]
[EventCountry "TUR"]
[SourceTitle "playchess.com"]
[Source "ChessBase"]
[SourceQuality "1"]
[TimeControl "5400+30"]

1. d4 {[%emt 0:03:30]} d5 {[%emt 0:00:30]} 2. Nf3 {[%emt 0:00:30]} Nf6 {[%emt 0:00:30]} 3. g3 {[%emt 0:00:30]} Bf5 {[%emt 0:01:30]} 4. Bg2 {[%emt 0:00:00]} e6 {[%emt 0:00:30]} 5. O-O {[%emt 0:00:00]} Bd6 {[%emt 0:00:30]} 6. c4 {[%emt 0:00:30]} c6 {[%emt 0:01:30]} 7. Nc3 {[%emt 0:02:30]} O-O {[%emt 0:00:30]} 8. Re1 {[%emt 0:04:30] D11: Slav Defence: 3 Nf3 sidelines and 3...Nf6 4 e3 Bg4} (8. Nd2 Nbd7 9. e4 dxe4 10. Ndxe4 Be7 11. Be3 Nxe4 12. Nxe4 Nf6 13. Nc3 Ng4 14. Bf4 Qb6 15. Na4 Qa6 {0-1 (28) Muha,M (2258)-Krsnik Cohar,I (2353) Zadar 2016}) 8... Re8 {[%emt 0:06:30]} 9. Nh4 $146 {[%emt 0:02:30]} ({Predecessor:} 9. Bg5 Nbd7 10. e4 dxe4 11. Nxe4 Be7 12. Nc3 Qc7 13. d5 cxd5 14. cxd5 e5 15. Rc1 Bd6 {1-0 (33) Collins,C-Kane,P Lansing 1993}) 9... Bg6 {[%emt 0:04:30]} 10. Nxg6 {[%emt 0:00:30]} hxg6 {[%emt 0:00:00]} 11. e4 {[%emt 0:00:30]} dxe4 {[%emt 0:01:00]} 12. Nxe4 {[%emt 0:00:00]} Nxe4 {[%emt 0:01:30]} 13. Rxe4 {[%emt 0:00:00]} Nd7 {[%emt 0:00:00]} 14. b3 {[%emt 0:05:30]} Nf6 {[%emt 0:01:00]} 15. Bg5 {[%emt 0:00:30]} Be7 {[%emt 0:00:30]} 16. Re2 {[%emt 0:00:30]} Qb6 {[%emt 0:01:30]} 17. Rd2 {[%emt 0:00:30]} Rad8 {[%emt 0:06:30]} 18. Be3 {[%emt 0:01:30]} Qa5 {[%emt 0:04:30]} 19. a3 {[%emt 0:03:30]} Qf5 {[%emt 0:01:30]} 20. h3 {[%emt 0:02:30]} g5 {[%emt 0:05:30]} 21. g4 {[%emt 0:00:30]} Qg6 {[%emt 0:00:30]} 22. Qf3 {[%emt 0:03:30]} Rd7 {[%emt 0:02:30]} 23. Rad1 {[%emt 0:00:30]} Bxa3 {[%emt 0:00:30]} 24. Ra2 {[%emt 0:01:30]} Bb4 {[%emt 0:03:30]} 25. Rxa7 {[%emt 0:00:30]} Red8 {[%emt 0:00:30]} 26. Ra4 {[%emt 0:07:30]} Bc3 {[%emt 0:00:30]} 27. d5 {[%emt 0:00:30]} b5 {[%emt 0:03:30] [#]} (27... Qc2 $11 {keeps the balance.}) 28. Ra6 $1 {[%emt 0:02:30]} Be5 $2 {[%emt 0:05:30]} (28... cxd5 $16 {was necessary.} 29. Bb6 {[%mdl 64] Discovered Attack} (29. cxb5 d4 $11) 29... b4) 29. Bb6 {[%emt 0:02:30]} ({Resist} 29. Rxc6 $6 bxc4 30. bxc4 exd5 $18) 29... cxd5 {[%emt 0:01:30]} 30. Bxd8 {[%emt 0:00:30]} Rxd8 {[%emt 0:00:30]} 31. Qe2 {[%emt 0:02:30]} ({Not} 31. cxd5 Nxd5 32. Qd3 (32. Qe2 Bf6 $18) 32... Qxd3 $18) (31. cxb5 Qc2 $16) 31... Bf4 {[%emt 0:01:30]} 32. cxd5 {[%emt 0:00:30]} exd5 {[%emt 0:01:30]} 33. Bxd5 {[%emt 0:00:30]} Re8 $2 {[%emt 0:05:30] [#]} (33... Rf8 34. Qxb5 Qc2) 34. Qxe8+ $18 {[%emt 0:01:30]} 1-0

[Event "7th Ali Ipek Memorial 2019"]
[Site "Ankara"]
[Date "2019.03.07"]
[Round "2.4"]
[White "Vural, Burak"]
[Black "Sahin, Doga Boran"]
[Result "0-1"]
[ECO "C12"]
[WhiteElo "1501"]
[BlackElo "1994"]
[Annotator "NA RC"]
[PlyCount "70"]
[EventDate "2019.03.06"]
[EventType "swiss"]
[EventCountry "TUR"]
[SourceTitle "playchess.com"]
[Source "ChessBase"]
[SourceQuality "1"]
[TimeControl "5400+30"]

1. e4 {[%emt 0:00:30]} e6 {[%emt 0:00:30]} 2. d4 {[%emt 0:00:30]} d5 {[%emt 0:00:00]} 3. Nc3 {[%emt 0:00:30]} Nf6 {[%emt 0:00:00]} 4. Bg5 {[%emt 0:00:00]} Bb4 {[%emt 0:01:30]} 5. e5 {[%emt 0:01:00]} h6 {[%emt 0:00:30]} 6. Bd2 {[%emt 0:00:30]} Bxc3 {[%emt 0:00:00]} 7. bxc3 {[%emt 0:00:30]} Ne4 {[%emt 0:00:00]} 8. Qg4 {[%emt 0:01:30]} g6 {[%emt 0:00:00]} 9. Bd3 {[%emt 0:01:30]} Nxd2 {[%emt 0:00:00]} 10. Kxd2 {[%emt 0:00:30]} c5 {[%emt 0:00:00]} 11. Nf3 {[%emt 0:04:30]} Nc6 {[%emt 0:01:00]} 12. Rab1 {[%emt 0:17:30] C12: French: Classical System: McCutcheon Variation} (12. dxc5 Qa5 13. Qf4 Qxc5 14. Nd4 Bd7 15. Rhb1 O-O-O 16. Rb5 Qe7 17. Rab1 b6 18. Nxc6 Bxc6 19. R5b4 g5 {½-½ (65) Anand,V (2817)-Nakamura,H (2774) Monte Carlo 2011}) 12... cxd4 {[%emt 0:08:30]} 13. cxd4 {[%emt 0:01:30]} a6 $146 {[%emt 0:00:30]} ({Predecessor:} 13... Qa5+ 14. Ke3 Qxa2 15. Ra1 Qb2 16. Kd2 Qb6 17. Qf4 a5 18. h4 Qd8 {½-½ (33) Sutkalenko,D (2294)-Orlov,V (2229) LSS email 2010}) 14. h4 {[%emt 0:05:30]} b5 {[%emt 0:02:30]} 15. h5 {[%emt 0:06:30]} g5 {[%emt 0:00:00]} 16. Nh2 {[%emt 0:06:30]} Bd7 {[%emt 0:11:00]} 17. Rhf1 {[%emt 0:11:30]} Rc8 {[%emt 0:03:30]} 18. c3 {[%emt 0:14:30]} Qa5 {[%emt 0:03:30]} 19. Rbc1 {[%emt 0:03:30]} Qxa2+ {[%emt 0:16:30]} (19... b4 $19 {and Black stays clearly on top.} 20. cxb4 Nxb4 21. Rxc8+ Bxc8) 20. Rc2 {[%emt 0:01:30]} Qa5 {[%emt 0:03:30]} 21. Ke3 {[%emt 0:08:34]} (21. Rb1 $142) 21... b4 $19 {[%emt 0:11:30]} 22. f4 {[%emt 0:01:36]} b3 {[%emt 0:02:30]} 23. Rcf2 {[%emt 0:00:49]} Qxc3 {[%emt 0:01:30]} 24. fxg5 {[%emt 0:00:58]} Nb4 {[%emt 0:00:30]} 25. Rd1 {[%emt 0:07:05]} b2 {[%emt 0:02:30]} 26. g6 {[%emt 0:02:33]} b1=Q {[%emt 0:08:30]} 27. gxf7+ {[%emt 0:01:28]} Kd8 {[%emt 0:00:00]} 28. f8=Q+ {[%emt 0:00:27]} Rxf8 {[%emt 0:00:00]} 29. Rxf8+ {[%emt 0:00:30]} Kc7 {[%emt 0:00:30]} 30. Rxc8+ {[%emt 0:00:30]} Kxc8 {[%emt 0:00:00]} 31. Qg8+ {[%emt 0:00:00]} Kc7 {[%emt 0:00:00]} 32. Rxb1 {[%emt 0:00:52]} Qxd3+ {[%emt 0:00:30]} 33. Kf2 {[%emt 0:00:10]} Qxd4+ {[%emt 0:00:30]} 34. Ke1 {[%emt 0:01:08]} Qe3+ {[%emt 0:00:30]} 35. Kf1 {[%emt 0:00:30]} Bb5# {[%emt 0:01:30]} 0-1

[Event "7th Ali Ipek Memorial 2019"]
[Site "Ankara"]
[Date "2019.03.07"]
[Round "2.5"]
[White "Karadag, Eflatun Cem"]
[Black "Ilarslan, Can"]
[Result "1/2-1/2"]
[ECO "D11"]
[WhiteElo "1879"]
[BlackElo "1387"]
[Annotator "NA RC"]
[PlyCount "75"]
[EventDate "2019.03.06"]
[EventType "swiss"]
[EventCountry "TUR"]
[SourceTitle "playchess.com"]
[Source "ChessBase"]
[SourceQuality "1"]
[TimeControl "5400+30"]

1. d4 {[%emt 0:13:30]} d5 {[%emt 0:00:30]} 2. Nf3 {[%emt 0:01:30]} Nf6 {[%emt 0:00:30]} 3. g3 {[%emt 0:00:00]} Bf5 {[%emt 0:00:30]} 4. Bg2 {[%emt 0:00:00]} c6 {[%emt 0:00:30]} 5. O-O {[%emt 0:00:30]} e6 {[%emt 0:00:00]} 6. Nbd2 {[%emt 0:02:30]} h6 {[%emt 0:01:00]} 7. c4 {[%emt 0:00:30]} Nbd7 {[%emt 0:01:30]} 8. Qb3 {[%emt 0:01:30] D11: Slav Defence: 3 Nf3 sidelines and 3...Nf6 4 e3 Bg4} (8. b3 Bd6 9. Bb2 Qb8 10. Qc1 O-O 11. Ba3 b5 12. Bxd6 Qxd6 13. Qc3 bxc4 14. bxc4 Ne4 15. Nxe4 Bxe4 16. Rfc1 dxc4 17. Qxc4 {½-½ (37) Mareco,S (2645)-Vishnu,P (2510) Sharjah 2018}) 8... Qb6 {[%emt 0:04:30]} 9. c5 {[%emt 0:03:30]} Qxb3 {[%emt 0:01:30]} 10. axb3 {[%emt 0:00:30]} Be7 {[%emt 0:02:30]} 11. b4 {[%emt 0:00:30]} O-O {[%emt 0:02:30]} 12. Nb3 {[%emt 0:01:30]} b6 {[%emt 0:04:30]} 13. h3 $146 {[%emt 0:03:30]} ({Predecessor:} 13. Bf4 g5 14. Bd6 Bxd6 15. cxd6 Bg4 {½-½ (49) Tudosa,D (1944)-Ludwig,S (2065) Bayern 2015}) 13... a5 {[%emt 0:13:30]} 14. bxa5 {[%emt 0:04:30]} bxc5 {[%emt 0:00:30]} 15. Nxc5 {[%emt 0:03:30]} Nxc5 {[%emt 0:00:30]} 16. dxc5 {[%emt 0:00:30]} Bxc5 {[%emt 0:00:30]} 17. Bf4 {[%emt 0:09:30]} Nd7 {[%emt 0:09:30]} 18. Rfc1 {[%emt 0:05:30]} f6 {[%emt 0:07:30]} 19. Bd2 {[%emt 0:06:30]} Rfc8 {[%emt 0:09:30]} 20. Ra4 {[%emt 0:10:30]} (20. b4 $16 Ba7 21. e3) 20... e5 {[%emt 0:02:30]} 21. Ne1 {[%emt 0:02:30]} Ba7 $2 {[%emt 0:04:30] [#]} (21... e4 $11) 22. Rxc6 $1 {[%emt 0:02:30]} e4 {[%emt 0:03:30]} 23. Rxc8+ {[%emt 0:03:30]} Rxc8 {[%emt 0:00:00]} 24. Ra1 {[%emt 0:03:30]} Ne5 {[%emt 0:02:00]} 25. b3 {[%emt 0:04:33]} Bd4 {[%emt 0:02:30]} 26. Ra2 {[%emt 0:01:29]} Bd7 {[%emt 0:05:30]} 27. e3 {[%emt 0:03:38]} Ba7 {[%emt 0:01:35]} 28. Bf1 {[%emt 0:01:16]} Rb8 {[%emt 0:01:09]} 29. Rb2 {[%emt 0:01:10]} Bb5 {[%emt 0:02:01]} 30. Rc2 {[%emt 0:02:41]} Bxf1 {[%emt 0:03:37]} 31. Kxf1 {[%emt 0:00:03]} Rxb3 {[%emt 0:01:00]} 32. Rc8+ {[%emt 0:02:18]} Kh7 {[%emt 0:00:53]} 33. Ra8 {[%emt 0:00:28]} Bc5 {[%emt 0:00:44]} 34. Rc8 $11 {[%emt 0:02:10]} Ba7 {[%emt 0:00:58]} 35. Ra8 {[%emt 0:00:30]} Bc5 {[%emt 0:00:30]} 36. Rc8 {[%emt 0:00:30]} Ba7 {[%emt 0:00:30]} 37. Ra8 {[%emt 0:00:30]} Bc5 {[%emt 0:00:30]} 38. Rc8 {[%emt 0:02:03]} 1/2-1/2

[Event "7th Ali Ipek Memorial 2019"]
[Site "Ankara"]
[Date "2019.03.07"]
[Round "2.7"]
[White "Turkmen, Ataberk"]
[Black "Taspinar, Yanki"]
[Result "0-1"]
[ECO "D43"]
[WhiteElo "1868"]
[BlackElo "1792"]
[Annotator "NA RC"]
[PlyCount "48"]
[EventDate "2019.03.06"]
[EventType "swiss"]
[EventCountry "TUR"]
[SourceTitle "playchess.com"]
[Source "ChessBase"]
[SourceQuality "1"]
[TimeControl "5400+30"]

1. d4 {[%emt 0:00:30]} Nf6 {[%emt 0:00:30]} 2. c4 {[%emt 0:00:00]} e6 {[%emt 0:00:30]} 3. Nc3 {[%emt 0:00:00]} d5 {[%emt 0:00:00]} 4. Nf3 {[%emt 0:00:30]} c6 {[%emt 0:05:00]} 5. c5 {[%emt 0:01:30]} b6 {[%emt 0:00:30] D43: Semi-Slav: 5 Bg5 h6} (5... Nbd7 6. Bf4 Nh5 7. Bd2 Nhf6 8. Qc2 g6 9. h3 Bg7 10. Bf4 O-O 11. e3 b6 12. b4 a5 13. cxb6 Nxb6 {½-½ (21) Chabanon,J (2424)-Dunis,A (2485) Marseille 2005}) 6. b4 {[%emt 0:02:30]} a5 {[%emt 0:01:30]} 7. Qa4 {[%emt 0:01:30]} Ne4 {[%emt 0:17:30]} 8. Qb3 $146 {[%emt 0:10:30]} ({Predecessor:} 8. Bd2 Ba6 9. bxa5 Nxd2 10. cxb6 Ne4 11. Nxe4 dxe4 12. Nd2 Bb5 13. Qb3 Qxd4 {0-1 (21) Waite,D (2066)-Skratulia,J (2244) USA 2000}) 8... axb4 {[%emt 0:02:30]} 9. Nxe4 {[%emt 0:16:30]} dxe4 {[%emt 0:00:30]} 10. Ng5 {[%emt 0:00:30]} Qxd4 {[%emt 0:00:30]} 11. Bb2 {[%emt 0:01:30]} Qd5 {[%emt 0:03:30]} 12. Qxd5 {[%emt 0:08:30]} exd5 {[%emt 0:01:30]} 13. cxb6 {[%emt 0:01:30]} f6 {[%emt 0:03:30]} 14. Nh3 {[%emt 0:01:30]} Bc5 {[%emt 0:00:30]} 15. b7 {[%emt 0:01:30]} Bxb7 {[%emt 0:01:30]} 16. e3 {[%emt 0:00:00]} Bd6 {[%emt 0:00:30]} 17. Be2 {[%emt 0:00:00]} Nd7 {[%emt 0:01:30]} 18. O-O {[%emt 0:02:30]} Ba6 {[%emt 0:03:30]} 19. Rfe1 {[%emt 0:03:30]} Bxe2 {[%emt 0:00:30]} 20. Rxe2 {[%emt 0:00:30]} Nc5 {[%emt 0:03:30]} 21. Rc2 $19 {[%emt 0:00:30]} Nd3 {[%emt 0:03:30]} 22. Rxc6 {[%emt 0:03:30]} Kd7 {[%emt 0:00:30]} 23. Rc2 {[%emt 0:00:30]} Nxb2 {[%emt 0:00:00]} 24. Rxb2 {[%emt 0:01:30]} Be5 {[%emt 0:00:00]} 0-1

[Event "7th Ali Ipek Memorial 2019"]
[Site "Ankara"]
[Date "2019.03.07"]
[Round "2.8"]
[White "Turkmen, Ataberk"]
[Black "Sac, Hakan"]
[Result "1-0"]
[ECO "B15"]
[WhiteElo "1868"]
[BlackElo "1604"]
[Annotator "NA"]
[PlyCount "30"]
[EventDate "2019.03.06"]
[EventType "swiss"]
[EventCountry "TUR"]
[SourceTitle "playchess.com"]
[Source "ChessBase"]
[SourceQuality "1"]
[TimeControl "5400+30"]

1. e4 {[%emt 0:00:30]} c6 {[%emt 0:13:30]} 2. d4 {[%emt 0:00:30]} d5 {[%emt 0:00:00]} 3. f3 {[%emt 0:00:30]} g6 {[%emt 0:03:00]} 4. Nc3 {[%emt 0:02:30]} Bg7 {[%emt 0:00:30]} 5. Be3 {[%emt 0:00:30]} dxe4 {[%emt 0:05:30]} 6. fxe4 {[%emt 0:01:30]} Qb6 {[%emt 0:01:30]} 7. Qd2 {[%emt 0:06:30]} Qxb2 {[%emt 0:01:30]} 8. Rb1 {[%emt 0:00:30]} Qa3 {[%emt 0:01:30]} 9. Nf3 {[%emt 0:03:30]} Nf6 {[%emt 0:03:30]} 10. Bd3 {[%emt 0:08:30]} O-O {[%emt 0:02:30]} 11. h3 {[%emt 0:02:30]} Nbd7 {[%emt 0:07:30]} 12. O-O {[%emt 0:03:30]} Qa5 {[%emt 0:00:30]} 13. e5 {[%emt 0:00:30]} Nd5 {[%emt 0:00:30]} 14. Nxd5 {[%emt 0:01:30]} Qxd5 {[%emt 0:03:30]} 15. c4 {[%emt 0:00:30]} Qe6 {[%emt 0:04:30]} 1-0